Workbook

Sheet Cover Page
D1: Add company logo
N2: Version 22.3 30/11/22
B8: Add photo
N13: Notes:
N14: This template may require adjustments by individual operators to meet specific reporting requirements as defined in the site Permit(s)
B29: Annual Performance Report 2022
B31: Permit EPR/BT7116IW
B33: Lakeside EFW Ltd
B35: other name of facility (if applicable)
B37: Lakeside EFW Ltd
B39: Year: | C39: 2022
B41: Address: | C41: Lakeside EfW Ltd, Lakeside Road, Colnbrook, Berkshire SL3 0FE
B43: Tel: | C43: 01753 688635
B45: Email: | C45: martin.rogers@lakesideefw.co.uk
B47: Prepared by: | C47: Martin Rogers | F47: Position: | G47: EHS Manager
B49: Approved by: | F49: Position:
B51: Version:
B53: Issue Date:

Sheet Contents
A1: =+'Cover Page'!$B$29 -> Annual Performance Report 2022 | E1: =+'Cover Page'!$B$33 -> Lakeside EFW Ltd
A3: Contents | K3: Notes:
A4: Section | B4: Subject | H4: Page | K4: Section references and Page nos. to be inserted
B5: Facility Information | K5: Sections and Subjects may require adjustment by individual operators to meet specific reporting requirements as defined in the sites Permit(s)
B6: Operational Data
B7: Operational Summary
B8: Performance Form 1
B9: Energy Form 1
B10: Permit Compliance
B11: Improvements
B12: Public Liasion
B13: Carbon dioxide and nitrous oxide emissions
B14: Residue Quality
B15: Emissions to Water
B16: Emissions to Air (periodically monitored)
B17: Emissions to Air (continuously monitored)
B18: Hydrogen Chloride emissions
B19: Sulphur Dioxdie emsissions
B20: Oxides of Notrigen emissions
B21: Total Organic Carbon emissions
B22: Particulate Matter emissions
B23: Carbon Monoxide emissions
B24: Ammonia emissions
A27: Version Control
A28: Section | B28: Information | H28: Date
A35: Distribution
A36: Copy | B36: Name, Role | H36: No.
A45: This report is required under the Industrial Emissions Directive’s Article 55(2) requirements on reporting and public information on waste incineration plants and co-incineration plants, which require the operator to produce an annual report on the functioning and monitoring of the plant and make it available to the public.

Sheet Facility Info
A1: =+'Cover Page'!$B$29 -> Annual Performance Report 2022 | E1: =+'Cover Page'!$B$33 -> Lakeside EFW Ltd
A3: Plant Description and Design | K3: Notes:
A5: Lakeside Energy from Waste (EfW) A joint venture project between two of the UK’s leading recycling and waste management companies; Grundon Waste Management and Viridor. The Lakeside EfW facility at Colnbrook near Slough has been operational since 2010. Using advanced technology, this plant is capable of processessing over 450,000 tonnes of residual waste per year, generating 37MW of power – enough to provide electricity to every household in Slough (56,000 homes). There is an education centre adjacent to Lakeside EfW, where schools and other groups can learn about sustainable waste management and energy from waste. (alt enter to make new para) | K5: Include summary of plant design, design capacity, no. of combustion lines, electrical and heat capacity and any other general information that descibes the facility, its location and purpose
A20: Summary of Operational Processes and Procedures
A22: Lakeside operate an Integrated Management System (IMS) that is ISO 14001, ISO 45001, ISO 9001, ISO 22301 and ISO 50001 certified. It includes all the procedures for receiving and inspecting waste, auditing suppliers to ensure waste quality and compliance. Operations includes procedures for running the plant, showing how to start a line, run a line and shutdown a line. EHS includes procedures for monitoring and reporting compliance. Maintenance includes all the procedures for planned maintenance, unplanned maintenance, outages and preventative maintenance. | K22: Include summary of key processes and procedures such as (but not limited to); waste reception, control rooms, grate, bed and bolier, energy & heat generation, cooling systems, residue management, emission controls, health and safety systems, maintenance

Sheet Operational Data
A1: =+'Cover Page'!$B$29 -> Annual Performance Report 2022 | E1: =+'Cover Page'!$B$33 -> Lakeside EFW Ltd
A3: Operational Data | K3: Notes:
A4: Plant Size | B4: 468280 | D4: tonnes pa | F4: MWth | H4: MWe | K4: * - RDF to include SRF
A5: No. of combustion lines | B5: 2 | D5: No. of Turbines: | F5: 1 | K5: ** - CHP plants only
K6: 2020 updates include; heat in MWh, water in Litres, NCV in MJ/kg
A7: Waste types received | B7: Unit | C7: Q1 | D7: Q2 | E7: Q3 | F7: Q4 | G7: Year Total | H7: %
A8: Household / Local Authority | B8: tonnes | C8: 65249 | D8: 60437 | E8: 65305 | F8: 64093 | G8: =SUM(C8:F8) -> 255084 | H8: =IF(G8>0,G8/$G$18,"-") -> 0.5998631351 | K8: Availabiity Definition: 'the availability of a line is to be calculated by the number of hours the line reported Continuously Monitored emission levels to the Regulator through the calendar year divided by the total number of hours in that year. The overall plant availability is calculated as the Mean of all lines in the plant. For clarity this includes periods of Other Than Normal Operating Conditions (OTNOC) and abnormal operation.' Rationale: The primary function of an Energy from Waste facility is the disposal of waste. It follows therefore that the availability of a plant is determined by the period of time a facility spends undertaking this activity.
A9: Commercial & Industrial | C9: 43499 | D9: 40323 | E9: 43536 | F9: 42736 | G9: =SUM(C9:F9) -> 170094 | H9: 0.3999981187
A10: Hazardous | D10: 47 | G10: 47 | H10: 0.0001105266005
A11: Clinical | F11: 12 | G11: 12 | H11: 2.821955756e-05
A12: Waste wood (biomass) | G12: 0 | H12: -
A13: Refuse Derived Fuel * - H'hold/LA | G13: =SUM(C13:F13) -> 0 | H13: -
A14: Refuse Derived Fuel * - C&I | G14: 0 | H14: -
A15: Other [Please specify] | G15: 0 | H15: -
A16: Other [Please specify]
A17: Other [Please specify]
A18: Total waste received | C18: =SUM(C8:C17) -> 108748 | D18: =SUM(D8:D17) -> 100807 | E18: =SUM(E8:E17) -> 108841 | F18: =SUM(F8:F17) -> 106841 | G18: =SUM(G8:G17) -> 425237 | H18: 1
A19: Rejected Waste | G19: =SUM(C19:F19) -> 0 | H19: =IF(G19>0,G19/$G$18,"-") -> -
A20: Unprocessed waste transferred out | G20: =SUM(C20:F20) -> 0 | H20: =IF(G20>0,G20/$G$18,"-") -> -
A21: Total waste combusted | C21: =C18-SUM(C19:C20) -> 108748 | D21: =D18-SUM(D19:D20) -> 100807 | E21: 108841 | F21: 106841 | G21: =SUM(C21:F21) -> 425237 | H21: =IF(G21>0,G21/$G$18,"-") -> 1
A23: Energy Useage / Export | B23: Unit | C23: Q1 | D23: Q2 | E23: Q3 | F23: Q4 | G23: Year Total | H23: KWh/te
A24: Power Generated | B24: MWh | C24: 82296 | D24: 70579 | E24: 79346 | F24: 73939 | G24: =SUM(C24:F24) -> 306160 | H24: =IF(G24>0,G24*1000/$G$21,"-") -> 719.9749787
A25: Power Exported | C25: 74713 | D25: 63093 | E25: 71355 | F25: 66331 | G25: =SUM(C25:F25) -> 275492 | H25: =IF(G25>0,G25*1000/$G$21,"-") -> 647.855196
A26: Power Used on site | C26: 7583 | D26: 7486 | E26: 7991 | F26: 7608 | G26: =SUM(C26:F26) -> 30668 | H26: =IF(G26>0,G26*1000/$G$21,"-") -> 72.11978262
A27: Power Imported | C27: 25 | D27: 0 | E27: 55 | G27: 80 | H27: =IF(G27>0,G27*1000/$G$21,"-") -> 0.1881303838
A28: Parasitic Load | B28: % | C28: =IF(C24>0,1-C25/(C24+C27),"-") -> 0.0924187024 | D28: =IF(D24>0,1-D25/(D24+D27),"-") -> 0.1060655436 | E28: =IF(E24>0,1-E25/(E24+E27),"-") -> 0.1013337364 | F28: =IF(F24>0,1-F25/(F24+F27),"-") -> 0.1028956302 | G28: =IF(G24>0,1-G25/(G24+G27),"-") -> 0.1004049112
A29: Thermal Energy Produced ** | B29: MWh | G29: =SUM(C29:F29) -> 0 | H29: =IF(G29>0,G29*1000/$G$21,"-") -> -
A30: Thermal Energy Exported ** | G30: 0 | H30: =IF(G30>0,G30*1000/$G$21,"-") -> -
A31: R1 value (if applicable)
A33: Waste Disposal & Recovery | B33: Unit | C33: Q1 | D33: Q2 | E33: Q3 | F33: Q4 | G33: Year Total | H33: % inputs
A34: APC Residues - produced | B34: tonnes | C34: 2939 | D34: 2615 | E34: 2886 | F34: 2716 | G34: =SUM(C34:F34) -> 11156 | H34: =IF(G34>0,G34/$G$21,"-") -> 0.02623478202
A35: IBA - produced | C35: 20224 | D35: 18535 | E35: 20436 | F35: 19147 | G35: 78342 | H35: =IF(G35>0,G35/$G$21,"-") -> 0.1842313816
A36: Metals recycling | C36: 1137 | D36: 1132 | E36: 1102 | F36: 1165 | G36: =SUM(C36:F36) -> 4536 | H36: 0.01066699276
A37: Other | C37: 0 | D37: 0 | E37: 0 | F37: 0 | G37: =SUM(C37:F37) -> 0 | H37: -
A38: Other | C38: 0 | D38: 0 | E38: 0 | F38: 0 | G38: 0 | H38: -
A39: Other | C39: 0 | D39: 0 | E39: 0 | F39: 0 | G39: 0 | H39: -
A41: Raw Material Usage | B41: Unit | C41: Q1 | D41: Q2 | E41: Q3 | F41: Q4 | G41: Year Total | H41: kg or Ltr /te
A42: Mains Water | B42: m3 | C42: 20364 | D42: 18465 | E42: 23370 | F42: 20601 | G42: =SUM(C42:F42) -> 82800 | H42: =IF(G42>0,G42/$G$21,"-") -> 0.1947149472
A43: Other Water | B43: ltrs | G43: 0 | H43: =IF(G43>0,G43/$G$21,"-") -> -
A44: Ammonia | B44: kgs | C44: 41181 | D44: 2516 | E44: 26142 | F44: 7778 | G44: 77617 | H44: 0.18252645
A45: Urea | B45: kgs | G45: =SUM(C45:F45) -> 0 | H45: -
A46: Activated Carbon | B46: kgs | C46: 41585 | D46: 37687 | E46: 43909 | F46: 40720 | G46: 163901 | H46: 0.3854344754
A47: Lime / hydrated lime | B47: kgs | C47: 1113205 | D47: 983018 | E47: 1138728 | F47: 1084744 | G47: 4319695 | H47: 10.15832348
A48: Fuel oil | B48: ltrs | C48: 2551 | D48: 97182 | E48: 5397 | F48: 70787 | G48: 175917 | H48: 0.413691659
A49: Gas | B49: cf | C49: 0 | D49: 0 | E49: 0 | F49: 0 | G49: 0
A50: Other | C50: 0 | D50: 0 | E50: 0 | F50: 0 | G50: 0
A52: Summary | B52: Line/Unit | C52: Q1 | D52: Q2 | E52: Q3 | F52: Q4 | G52: Year Total | J52: Hrs in year
A53: Availability of waste combustion by line, hrs | B53: 1 | C53: 2159 | D53: 2029 | E53: 2184 | F53: 2086 | G53: =SUM(C53:F53) -> 8458 | H53: =G53/J53 -> 0.9655251142 | J53: 8760
B54: 2 | C54: 2159 | D54: 1831 | E54: 2207 | F54: 2055 | G54: 8252 | H54: =G54/J53 -> 0.9420091324
B55: 3 | G55: 0 | H55: x %
B56: 4 | G56: 0 | H56: x %
B57: 5 | G57: =SUM(C57:F57) -> 0 | H57: x %
A58: Overall Availability, mean avg. of all lines, hrs | G58: =AVERAGE(G53:G54) -> 8355 | H58: =G58/J53 -> 0.9537671233
A59: Hours of turbine operations, hrs | B59: 1 | C59: 2154 | D59: 2184 | E59: 2193 | F59: 2208 | G59: 8739 | H59: =G59/J53 -> 0.9976027397
A60: Hours of turbine operations, hrs | B60: 2 | G60: 0 | H60: x %
A61: Hours of heat / steam export | G61: 0 | H61: =IF(B61>0,G60/J53,"n/a") -> n/a
A62: Net Calorific Value of waste | B62: MJ/kg | C62: 9.76 | D62: 9.39 | E62: 10.17 | F62: 9.215 | H62: -
A63: Abnormal Events | B63: qty. | C63: 2 | D63: 3 | E63: 0 | F63: 2 | G63: 7 | H63: =IF(G63>0,"yes","no") -> yes
A64: Abnormal operation | B64: hours | C64: 4.5 | D64: 1.5 | E64: 0 | F64: 2 | G64: 8 | H64: =+(G64)/J53 -> 0.0009132420091
A65: Permit Breaches | B65: qty. | C65: 2 | D65: 1 | E65: 0 | F65: 0 | G65: 3 | H65: =IF(G65>0,"yes","no") -> yes

Sheet Operational Summary
A1: =+'Cover Page'!$B$29 -> Annual Performance Report 2022 | E1: =+'Cover Page'!$B$33 -> Lakeside EFW Ltd
A3: Summary of Plant Operations and Maintenance during the reporting year | K3: Notes:
A5: add text here, (alt enter to make new para) | K5: Include summary of key operational and/or mainteanance activity undertaken in the year, such as any major component upgrades and/or replacements
A29: Summary of Residue Handling for the reporting year
A31: add text here, (alt enter to make new para) | K31: Include in here a summary of residue handling regimes and destinations

Sheet Perf. Form 1
A1: =+'Cover Page'!C39 -> 2022 | B1: Annual Reporting Performance Form 1
A3: =+'Cover Page'!B31 -> Permit EPR/BT7116IW | F3: Operator: | G3: =+'Cover Page'!B37:I37 -> 0
A4: Facility: | B4: =+'Cover Page'!B33:I33 -> Lakeside EFW Ltd | F4: Form: | G4: Performance 1
A6: Reporting Period from: | D6: 2022-01-01 | F6: to: | G6: 2022-12-31
A8: =+A1 -> 2022 | B8: Annual Reporting of Waste Disposal and Recovery
A9: Waste Description | C9: Disposal Route(s) | E9: Disposal Tonnes | G9: Recovery Tonnes | I9: % / tonne of waste incinerated
A10: 1) Hazardous Wastes
A11: APC Residues | C11: R05 | G11: 11156 | I11: =IF((E11+G11)>0,(E11+G11)/'Operational Data'!$G$21, "-") -> 0.02623478202
A12: IBA | I12: =IF((E12+G12)>0,(E12+G12)/'Operational Data'!$G$21, "-") -> -
I13: =IF((E13+G13)>0,(E13+G13)/'Operational Data'!$G$21, "-") -> -
I14: =IF((E14+G14)>0,(E14+G14)/'Operational Data'!$G$21, "-") -> -
A15: Total Hazardous Waste | E15: =SUM(E11:F14) -> 0 | G15: =SUM(G11:H14) -> 11156 | I15: =IF((E15+G15)>0,(E15+G15)/'Operational Data'!$G$21, "-") -> 0.02623478202
A17: 2) Non-Hazardous Wastes
A18: IBA | C18: R11 | G18: 78342 | I18: =IF((E18+G18)>0,(E18+G18)/'Operational Data'!$G$21, "-") -> 0.1842313816
A19: Ferrous Metal | C19: R04 | G19: 4536 | I19: =IF((E19+G19)>0,(E19+G19)/'Operational Data'!$G$21, "-") -> 0.01066699276
A20: Process Water | I20: =IF((E20+G20)>0,(E20+G20)/'Operational Data'!$G$21, "-") -> -
I21: =IF((E21+G21)>0,(E21+G21)/'Operational Data'!$G$21, "-") -> -
I22: =IF((E22+G22)>0,(E22+G22)/'Operational Data'!$G$21, "-") -> -
A23: Total Non-Hazardous Waste | E23: =SUM(E18:F22) -> 0 | G23: =SUM(G18:H22) -> 82878 | I23: =IF((E23+G23)>0,(E23+G23)/'Operational Data'!$G$21, "-") -> 0.1948983743
A24: TOTAL WASTE | E24: =+E23+E15 -> 0 | G24: =+G23+G15 -> 94034 | I24: =IF((E24+G24)>0,(E24+G24)/'Operational Data'!$G$21, "-") -> 0.2211331563
A26: Operator’s comments :
A27: Metals are recycled, IBA is used as road aggregate and APC is converted into an aggregate pellet for making concrete building blocks.
A31: =+A1 -> 2022 | B31: Annual Reporting of Water and Other Raw Material Usage
A32: Raw Material | E32: Usage | G32: Unit | H32: Specific Useage | J32: Unit
A33: Mains Water | E33: =+'Operational Data'!G42 -> 82800 | G33: m3 | H33: =IF(E33>0,E33/'Operational Data'!$G$21,"-") -> 0.1947149472 | J33: m3/te
A34: Total Water | E34: =+'Operational Data'!G43+'Operational Data'!G42 -> 82800 | G34: m3 | H34: =IF(E34>0,E34/'Operational Data'!$G$21,"-") -> 0.1947149472 | J34: m3/te
A35: Urea / Ammonia | E35: =+'Operational Data'!G44 -> 77617 | G35: kg | H35: =IF(E35>0,E35/'Operational Data'!$G$21,"-") -> 0.18252645 | J35: kg/te
A36: Activated Carbon | E36: =+'Operational Data'!G46 -> 163901 | G36: kg | H36: =IF(E36>0,E36/'Operational Data'!$G$21,"-") -> 0.3854344754 | J36: kg/te
A37: Lime / hydrated lime / Sodium Bicarb. | E37: =+'Operational Data'!G47 -> 4319695 | G37: kg | H37: =IF(E37>0,E37/'Operational Data'!$G$21,"-") -> 10.15832348 | J37: kg/te
A39: Operator’s comments :
A40: Ammonia, carbon and lime are used in the abatement of Lakeside's flue gases.
A43: =+A31 -> 2022 | B43: Annual Reporting of other performance indicators
A44: Parameter | C44: Results by Line
C45: A1 | D45: A2 | E45: A3 | F45: A4 | G45: A5 | I45: Turbine 1 | J45: Turbine 2
A46: Operating hours for the year, hours | C46: ='Operational Data'!G53 -> 8458 | D46: ='Operational Data'!G54 -> 8252
A47: Number of periods of abnormal operation, qty. | C47: 4 | D47: 3
A48: Cumulative hours of abnormal operation for this year, hours | C48: 6 | D48: 2
A50: Operator’s comments :
A51: No major outage in 2022 just breakdown problems accounting for a high plant throughput.
A54: Signed: | G54: Date: | H54: 2023-01-24

Sheet Energy Form 1
A1: =+'Cover Page'!C39 -> 2022 | B1: Annual Reporting of Energy Usage/Export
A3: =+'Cover Page'!B31 -> Permit EPR/BT7116IW | F3: Operator: | G3: =+'Cover Page'!B37:I37 -> 0
A5: Facility: | B5: =+'Cover Page'!B33:I33 -> Lakeside EFW Ltd | F5: Form: | G5: Energy 1
A7: Reporting Period from: | D7: =+'Perf. Form 1'!D6:E6 -> 2022-01-01 | F7: to: | G7: =+'Perf. Form 1'!G6:H6 -> 2022-12-31
A9: Energy Source | D9: Energy Usage | F9: Unit | G9: Specific Useage (KWh/tonne incinerated
A10: Electricity Produced | D10: =+'Operational Data'!G24 -> 306160 | F10: MWh | G10: =+'Operational Data'!H24 -> 719.9749787
A11: Electricity Imported | D11: =+'Operational Data'!G27 -> 80 | F11: MWh | G11: =+'Operational Data'!H27 -> 0.1881303838
A12: Electricity Exported | D12: =+'Operational Data'!G25 -> 275492 | F12: MWh | G12: =+'Operational Data'!H25 -> 647.855196
A13: Gas Oil | D13: ='Operational Data'!G48/837 -> 210.1756272 | F13: tonnes
A14: Steam/hot water exported | D14: =+'Operational Data'!G30 -> 0 | F14: GWh | G14: =+'Operational Data'!H30 -> -
A18: Operator’s comments :
A29: Signed: | G29: Date:

Sheet Permit Compliance
A1: =+'Cover Page'!$B$29 -> Annual Performance Report 2022 | E1: =+'Cover Page'!$B$33 -> Lakeside EFW Ltd
A3: Summary of Permit Compliance
A5: Compliance with permit limits for continuously monitored pollutants
A7: The plant met its emission limits as shown in the table below:
A8: Substance | C8: Percentage time compliant during operation | L8: Notes:
C9: Half-hourly limit | F9: Daily limit | L9: Report to 2 decimal places, i.e. xx.xx% Please provide a brief summary of each notification or non-compliance in the table (rather than just referring to notifications that were sent to the Regulator).
A10: Particulates | C10: 1 | F10: 1
A11: Oxides of nitrogen | C11: 1 | F11: 0.997
A12: Sulphur dioxide | C12: 1 | F12: 1
A13: Carbon monoxide | C13: 100% 95% of 10-min averages | F13: 1
A14: Total organic carbon | C14: 0.9999 | F14: 1
A15: Hydrogen chloride | C15: 1 | F15: 1
A16: Hydrogen fluoride | C16: 1 | F16: 1
C17: xx.xx % | F17: xx.xx %
A19: Summary of any notifications or non-compliances under the permit
A20: Date | B20: Summary of notification or non-compliance [including Line/Reference] | E20: Reason | H20: Measures taken to prevent reoccurrence
A21: 2022-01-25 | B21: SO2 1316.36 mg/m3 for half an hour due to heated line starting to fail. | E21: Heated line causing N2 back flush. | H21: Heated line replaced.
A22: 2022-02-12 | B22: Daily average of 201.64 mg/m3 NO2 with two high final half hour averages of 247.54 & 239.68 mg/m3. | E22: Poor waste condition. | H22: Ammonia dosing increased.
A23: 2022-04-11 | B23: VOC of 26.3 mg/m3 when hydrogen cylinder changed on FID. | E23: Hydrogen interference. | H23: Abnormal operation.
A27: Summary of any complaints received and actions to taken to resolve them.
A28: Date | B28: Summary of complaint [including Line/Reference] | E28: Reason * | H28: Measures taken to prevent reoccurrence
E34: * including whether substantiated by the operator or the EA

Sheet Improvements
A1: =+'Cover Page'!$B$29 -> Annual Performance Report 2022 | E1: =+'Cover Page'!$B$33 -> Lakeside EFW Ltd
A3: Summary of Plant Improvements
A5: Summary of any efficiency improvements that have been completed within the year.
A16: Summary of any permit improvement conditions that have been completed within the year and the resulting environmental benefits.
A27: Summary of any changes to the plant or operating techniques which required a variation to the permit and a summary of the resulting environmental impact.
A38: Summary of any other improvements made to the plant or planned to be made and a summary of the resulting environmental benefits.

Sheet Public Liasion
A1: =+'Cover Page'!$B$29 -> Annual Performance Report 2022 | E1: =+'Cover Page'!$B$33 -> Lakeside EFW Ltd
A3: Details of Public & Stakeholder Liasion
A5: Summary of events held during the reporting year.
A6: Date | C6: Description
A16: List of events planned for next year
A17: Date | C17: Description
A29: If you wish to be involved in the public liasion programme, please contact _________________

Sheet CO2 N2O
A1: =+'Cover Page'!$B$29 -> Annual Performance Report 2022 | C1: =+'Cover Page'!$B$33 -> Lakeside EFW Ltd
A3: Carbon dioxide emissions and biogenic content of waste inputs | E3: Notes:
A5: Carbon dioxide emissions (all types of plant)
A6: Annual mass of carbon dioxide released | B6: x tonnes | C6: 447073
A7: Annual mass of carbon dioxide released per tonne of waste burned | B7: x tonnes | C7: 1.051
A8: Annual mass of carbon dioxide released per MWh of energy exported | B8: x tonnes | C8: 1.54
A9: Description of how annual carbon dioxide mass emission has been calculated | B9: Data obtained from the measured CO2 cems. | E9: Note 1: Where available, data from CO2 CEMS should be used. Otherwise, where no CEMS data is available, a suitable emissions factor should be used based on the tonnage of waste burned e.g.0.992 tCO2/t waste as per Tolvik report 2021, or other justified emissions factor - refer to embedded Environment Agency guidance note above or updated version for suitable descriptive text.
A11: Nitrous oxide emissions (only plants which use ammonia or urea to abate NOx emissions)
A12: Annual mass emissions of nitrous oxide | B12: x tonnes | C12: 2.2
A13: Description of how annual nitrous oxide mass emission has been calculated | B13: Data obtained from the measured N2O cems. | E13: Note 2: Where available, data from N2O CEMS should be used, or if no CEMS data is available, from periodic monitoring. Otherwise, a suitable emissions factor should be used based on the tonnage of waste burned e.g. 0.0981 kgN20/t waste as per 2021 Pollution Inventory data for plants with urea-based SNCR - refer to embedded Environment Agency guidance note above or updated version for suitable descriptive text.
A14: Total annual carbon dioxide and nitrous oxide emissions as carbon dioxide equivalent (whereby 1 t nitrous oxide is equivalent to 298 t carbon dioxide) | B14: x tonnes CO2e | C14: 447728.6
A16: Biogenic fraction of the waste and biogenic CO2 emissions (only plants burning residual municipal waste, refuse derived fuel or solid recovered fuel)
A17: Yearly average biogenic percentage of the waste by net calorific value (NCV) | B17: x % | C17: 53.3
A18: Description of how biogenic NCV percentage has been calculated or estimated | B18: Figure obtained from waste sampling. | E18: Note 3: Where available, data from waste sampling should be used; otherwise, an estimated figure with justification can be used, or a figure assumed on the basis of a national average e.g. 2017 WRAP data for residual waste of 51.8% biogenic energy content - refer to embedded Environment Agency guidance note above or updated version for suitable descriptive text, quoting standards where relevant.
A19: Percentage of total carbon dioxide emissions arising from biogenic waste | B19: x % | C19: 236949
A20: Description of how percentage biogenic carbon dioxide emissions have been calculated | B20: 53.3% of total CO2 figure. | E20: Note 4: Examples include direct measurement via C14 method or BIOMA software - refer to embedded Environment Agency guidance note above or updated version for suitable descriptive text, quoting standards where relevant. Otherwise, as an approximation (and in lieu of any more accurate metrics which may be developed in future), the measured or estimated biogenic fraction by net calorific value can be assumed to be the same as the biogenic CO2 fraction of the total CO2 emissions from the plant.
A22: Comments:
A23: CO2 and N20 calibrated in November 2021.

Sheet Residue Quality
A1: =+'Cover Page'!$B$29 -> Annual Performance Report 2022 | E1: =+'Cover Page'!$B$33 -> Lakeside EFW Ltd
A3: Residue Quality Monitoring Requirements
A5: Summary of monitoring undertaken and compliance
A6: Compliance monitoring took place on samples taken in January, April, July and October. All ash was in specification.
A8: Lakeside subscribe to the ESA protocol whereby the IBA is tested monthly in addition to the above compliance monitoring. One sample in June exceeded the limit for HP14 ecotoxicity.
A10: All samples before it and after it have been non-hazardous.
A13: Commentary on any specific events
A14: Date & Event | C14: Description
A15: 2022-06-01 | C15: High lead value in one sample of IBA on a rolling 24 sample average. No changes in waste supply were identified and the source unknown.
A27: Residue Quality Monitoring Results
A28: Parameter (unit) | C28: Limit | D28: Normal Operation
D29: Bottom ash | F29: APC Residues
A30: Loss on Ignition (average %) | C30: <5%
A31: Total Organic Carbon (average %) | C31: <3% | D31: 0.0056
A32: No. of Assessments Undertaken | C32: --- | D32: 24 | F32: 4
A33: No. of Hazardous Results | C33: --- | D33: 1
A35: Comments :
A36: APC and IBA are in compliance with the permit. One sample failed on HP14 ecotoxicity on the ESA protocol.

Sheet Water
A1: =+'Cover Page'!$B$29 -> Annual Performance Report 2022 | E1: =+'Cover Page'!$B$33 -> Lakeside EFW Ltd
A3: Emissions to Water
A5: Summary of monitoring undertaken and compliance
A6: Water is not discharged to sewer and is used in the process.
A13: Commentary on any specific events
A14: Date & Event | C14: Description
A22: Emissions to Water / Sewer
A23: Parameter | D23: Monitoring Frequency | F23: Limit | G23: Target | H23: Max. | I23: Average
A24: Water is not discharged to sewer and is used in the process.

Sheet Air (periodic)
A1: =+'Cover Page'!$B$29 -> Annual Performance Report 2022 | E1: =+'Cover Page'!$B$33 -> Lakeside EFW Ltd
A3: Emissions to Air (periodically monitored)
A5: Summary of monitoring undertaken, standards used and compliance | M5: Notes:
M6: Template may require adjustment for any bespoke monitoring requirements of permit.
A9: Results of emissions to air that are periodically monitored
A10: Substance | C10: Ref. Period | D10: Emission Limit Value | F10: Average | M10: User to add additional tables as necessary, depending on whether quarterly or bi-annual reporting is required for the compliance year
F11: A1 | G11: A2 | H11: A3 | I11: A4 | J11: A5
A12: Hydrogen fluoride | C12: 1 hr | D12: 2 mg/m3
A13: Cd and Th and their compounds | C13: 6-8hrs | D13: 0.05 mg/m3
A14: Hg and its compounds | C14: 6-8hrs | D14: 0.05 mg/m3
A15: Sb, As, Pb, Cr, Co, Cu, Mn, Ni, V and their compounds | C15: 6-8hrs | D15: 0.5 mg/m3
A16: Dioxins & Furans (I-TEQ) | C16: 6-8hrs | D16: 0.1 ng/m3
A17: PCBs (WHO-TEQ Humans / Mammals) | C17: 6-8hrs | D17: None set ng/m3
A18: PCBs (WHO-TEQ Fish) | C18: 6-8hrs | D18: None set ng/m3
A19: PCBs (WHO-TEQ Birds) | C19: 6-8hrs | D19: None set ng/m3
A20: Dioxins & Furans (WHO-TEQ Humans / Mammals) | C20: 6-8hrs | D20: None set ng/m3
A21: Dioxins & Furans (WHO-TEQ Fish) | C21: 6-8hrs | D21: None set ng/m3
A22: Dioxins & Furans (WHO-TEQ Birds) | C22: 6-8hrs | D22: None set ng/m3
A23: Anthanthrene | C23: 6-8hrs | D23: None set µg/m3
A24: Benzo(a)anthracene | C24: 6-8hrs | D24: None set µg/m3
A25: Benzo(a)pyrene | C25: 6-8hrs | D25: None set µg/m3
A26: Benzo(b)fluoranthene | C26: 6-8hrs | D26: None set µg/m3
A27: Benzo(b)naptho(2,1-d) thiophene | C27: 6-8hrs | D27: None set µg/m3
A28: Benzo(c)phenanthrene | C28: 6-8hrs | D28: None set µg/m3
A29: Benzo(ghi)perylene | C29: 6-8hrs | D29: None set µg/m3
A30: Benzo(k)fluoranthene | C30: 6-8hrs | D30: None set µg/m3
A31: Cholanthrene | C31: 6-8hrs | D31: None set µg/m3
A32: Chrysene | C32: 6-8hrs | D32: None set µg/m3
A33: Cyclopenta(cd)pyrene | C33: 6-8hrs | D33: None set µg/m3
A34: Dibenzo(ai)pyrene | C34: 6-8hrs | D34: None set µg/m3
A35: Dibenzo(ah)anthracene | C35: 6-8hrs | D35: None set µg/m3
A36: Fluoranthene | C36: 6-8hrs | D36: None set µg/m3
A37: Indeno(123-cd) pyrene | C37: 6-8hrs | D37: None set µg/m3
A38: Naphthalene | C38: 6-8hrs | D38: None set µg/m3
A39: Comments :

Sheet Air (CEMS)
A1: =+'Cover Page'!$B$29 -> Annual Performance Report 2022 | I1: =+'Cover Page'!$B$33 -> Lakeside EFW Ltd
A3: Emissions to Air (continously monitored)
P4: Notes:
A5: Summary of monitoring undertaken, standards used and compliance | P5: Template may require adjustment for any bespoke monitoring requirements of permit
P6: Report to 2 decimal places, i.e. xx.xx%
A11: Results of emissions to air that are continuously monitored (maximum and average values for each line)
A12: Substance | B12: Reference Period | C12: Emission Limit Value | D12: A1 | F12: A2 | H12: A3 | J12: A4 | L12: A5
D13: Max. | E13: Avg. | F13: Max. | G13: Avg. | H13: Max. | I13: Avg. | J13: Max. | K13: Avg. | L13: Max. | M13: Avg.
A14: Oxides of nitrogen | B14: Daily mean | C14: 200 mg/m3 | D14: =NOx!O19 -> 198.87 | E14: =NOx!N19 -> 168.7958333 | F14: =NOx!O34 -> 189.54 | G14: =NOx!N34 -> 152.3475
B15: ½ hourly mean | C15: 400 mg/m3 | D15: =NOx!M19 -> 301.26 | E15: =NOx!L19 -> 168.7975 | F15: =NOx!M34 -> 381.52 | G15: =NOx!L34 -> 152.3433333
A16: Particulates | B16: Daily mean | C16: 10 mg/m3 | D16: =Particulates!O19 -> 2.31 | E16: =Particulates!N19 -> 0.09 | F16: =Particulates!O34 -> 5.84 | G16: =Particulates!N34 -> 0.2891666667
B17: ½ hourly mean | C17: 30 mg/m3 | D17: =Particulates!M19 -> 9.59 | E17: =Particulates!L19 -> 0.08916666667 | F17: =Particulates!M34 -> 12.19 | G17: =Particulates!L34 -> 0.2891666667
A18: Total Organic Carbon | B18: Daily mean | C18: 10 mg/m3 | D18: =TOC!O19 -> 1.83 | E18: =TOC!N19 -> 0.08666666667 | F18: =TOC!O34 -> 2.18 | G18: =TOC!N34 -> 0.325
B19: ½ hourly mean | C19: 20 mg/m3 | D19: =TOC!M19 -> 252.49 | E19: =TOC!L19 -> -0.03666666667 | F19: =TOC!M34 -> 30.71 | G19: =TOC!L34 -> 0.3366666667
A20: Hydrogen chloride | B20: Daily mean | C20: 10 mg/m3 | D20: =HCl!O19 -> 12.68 | E20: =HCl!N19 -> 4.589166667 | F20: =HCl!O34 -> 5.86 | G20: =HCl!N34 -> 3.339166667
B21: ½ hourly mean | C21: 60 mg/m3 | D21: =HCl!M19 -> 100.39 | E21: =HCl!L19 -> 4.610833333 | F21: =HCl!M34 -> 32.52 | G21: =HCl!L34 -> 3.363333333
A22: Sulphur dioxide | B22: Daily mean | C22: 50 mg/m3 | D22: ='SO2'!O19 -> 14.3 | E22: ='SO2'!N19 -> 6.783333333 | F22: ='SO2'!O34 -> 40.35 | G22: ='SO2'!N34 -> 7.570833333
B23: ½ hourly mean | C23: 200 mg/m3 | D23: ='SO2'!M19 -> 70.92 | E23: ='SO2'!L19 -> 6.784166667 | F23: ='SO2'!M34 -> 1316.36 | G23: ='SO2'!L34 -> 7.596666667
A24: Carbon monoxide | B24: Daily mean | C24: 50 mg/m3 | D24: ='CO 95% 10 min'!Q19 -> 438.08 | E24: ='CO 95% 10 min'!P19 -> 5.753333333 | F24: ='CO 95% 10 min'!Q34 -> 13.11 | G24: ='CO 95% 10 min'!P34 -> 3.539166667
B25: ½ hourly mean * | C25: 100 mg/m3 *
B26: 95%ile 10-min avg * | C26: 150 mg/m3 * | D26: ='CO 95% 10 min'!M19 -> 2846.34 | E26: ='CO 95% 10 min'!N19 -> 5.9625 | F26: ='CO 95% 10 min'!M34 -> 42.71 | G26: ='CO 95% 10 min'!N34 -> 3.56
A27: Ammonia | B27: Daily mean | C27: No limit set | D27: ='NH3'!O19 -> 2.19 | E27: ='NH3'!N19 -> 0.07083333333 | F27: ='NH3'!O34 -> 0.42 | G27: ='NH3'!N34 -> 0.1108333333
A28: * = delete or amend as appropriate
A29: Comments :

Sheet HCl
A1: =+'Cover Page'!$B$29 -> Annual Performance Report 2022 | E1: =+'Cover Page'!$B$33 -> Lakeside EFW Ltd
A3: Monitoring of Hydrogen Chloride emissions | D3: Whole Installation | G3: See Notes in Cell Q3 | J3: =+A3 -> Monitoring of Hydrogen Chloride emissions | N3: Per Combustion Line | Q3: Notes:
Q4: User to add logic to complete Whole installation, Table A5:G18. From the data in Per Combustion Line, Table J6:O79, subject to No. of lines installed
A5: mg/Nm3 | B5: 1/2 Hourly Reference Periods | E5: Daily Reference Periods
A6: =+'Cover Page'!C39 -> 2022 | B6: 1/2 hourly HCl ELV | C6: Monthly 1/2 hourly mean | D6: Highest 1/2 hourly maximum | E6: Daily HCl ELV | F6: Monthly daily mean | G6: Highest daily maximum | J6: =+A6 -> 2022 | K6: mg/Nm3 | L6: Monthly 1/2 hourly mean | M6: Monthly 1/2 hourly maximum | N6: Monthly daily mean | O6: Monthly daily maximum
A7: Jan | B7: 60 | C7: 4.61 | D7: 15.83 | E7: 10 | F7: 4.61 | G7: 7.54 | J7: A1 | K7: Jan | L7: 5.4 | M7: 15.83 | N7: 5.4 | O7: 7.54
A8: Feb | B8: 60 | C8: 5.55 | D8: 22.76 | E8: 10 | F8: 5.53 | G8: 8.15 | K8: Feb | L8: 6.4 | M8: 22.76 | N8: 6.38 | O8: 8.15
A9: Mar | B9: 60 | C9: 4.02 | D9: 15.97 | E9: 10 | F9: 4.02 | G9: 5.72 | K9: Mar | L9: 3.81 | M9: 15.97 | N9: 3.81 | O9: 5.44 | Q9: Whole Installation table A5:G18:
A10: Apr | B10: 60 | C10: 3.9 | D10: 100.39 | E10: 10 | F10: 3.76 | G10: 5.49 | K10: Apr | L10: 4.24 | M10: 100.39 | N10: 4.08 | O10: 5.49 | Q10: Mean: for 1/2 hourly and daily periods calculate mean of values across all operational combustion lines for the month
A11: May | B11: 60 | C11: 3.27 | D11: 10.94 | E11: 10 | F11: 3.27 | G11: 5.2 | K11: May | L11: 3.53 | M11: 10.94 | N11: 3.53 | O11: 5.2
A12: Jun | B12: 60 | C12: 4.12 | D12: 15.07 | E12: 10 | F12: 4.06 | G12: 6.31 | K12: Jun | L12: 4.8 | M12: 13.38 | N12: 4.8 | O12: 6.31
A13: Jul | B13: 60 | C13: 3.51 | D13: 32.52 | E13: 10 | F13: 3.52 | G13: 4.59 | K13: Jul | L13: 4.04 | M13: 10.42 | N13: 4.06 | O13: 4.59 | Q13: Maximum: for 1/2 hourly and daily periods use the highest value across all operational combustion lines for the month
A14: Aug | B14: 60 | C14: 4.38 | D14: 14.14 | E14: 10 | F14: 4.39 | G14: 6.42 | K14: Aug | L14: 5.51 | M14: 14.14 | N14: 5.51 | O14: 6.42
A15: Sep | B15: 60 | C15: 3.93 | D15: 81.43 | E15: 10 | F15: 3.88 | G15: 12.68 | K15: Sep | L15: 4.8 | M15: 81.43 | N15: 4.7 | O15: 12.68
A16: Oct | B16: 60 | C16: 3.94 | D16: 28.64 | E16: 10 | F16: 3.96 | G16: 5.76 | K16: Oct | L16: 4.89 | M16: 28.64 | N16: 4.89 | O16: 5.76
A17: Nov | B17: 60 | C17: 3.65 | D17: 13.73 | E17: 10 | F17: 3.65 | G17: 5.25 | K17: Nov | L17: 4.45 | M17: 8.71 | N17: 4.45 | O17: 5.25
A18: Dec | B18: 60 | C18: 3.15 | D18: 8.64 | E18: 10 | F18: 3.15 | G18: 3.97 | K18: Dec | L18: 3.46 | M18: 6.1 | N18: 3.46 | O18: 3.97
K19: Annual | L19: =AVERAGE(L7:L18) -> 4.610833333 | M19: =MAX(M7:M18) -> 100.39 | N19: =AVERAGE(N7:N18) -> 4.589166667 | O19: =MAX(O7:O18) -> 12.68
J21: =+A6 -> 2022 | K21: mg/Nm3 | L21: Monthly 1/2 hourly mean | M21: Monthly 1/2 hourly maximum | N21: Monthly daily mean | O21: Monthly daily maximum
J22: A2 | K22: Jan | L22: 3.81 | M22: 8.72 | N22: 3.82 | O22: 4.99
K23: Feb | L23: 4.7 | M23: 7.03 | N23: 4.7 | O23: 5.86
K24: Mar | L24: 4.23 | M24: 6.2 | N24: 4.23 | O24: 5.72
K25: Apr | L25: 3.38 | M25: 14.69 | N25: 3.23 | O25: 5.06
K26: May | L26: 3.05 | M26: 3.99 | N26: 3.05 | O26: 3.28
K27: Jun | L27: 3.31 | M27: 15.07 | N27: 3.16 | O27: 3.76
K28: Jul | L28: 2.99 | M28: 32.52 | N28: 2.99 | O28: 4.47
K29: Aug | L29: 3.26 | M29: 13.35 | N29: 3.26 | O29: 4.44
K30: Sep | L30: 3.08 | M30: 4.97 | N30: 3.08 | O30: 4.66
K31: Oct | L31: 2.96 | M31: 6.63 | N31: 2.97 | O31: 3.88
K32: Nov | L32: 2.69 | M32: 13.73 | N32: 2.69 | O32: 4.17
K33: Dec | L33: 2.9 | M33: 8.64 | N33: 2.89 | O33: 3.86
K34: Annual | L34: =AVERAGE(L22:L33) -> 3.363333333 | M34: =MAX(M22:M33) -> 32.52 | N34: =AVERAGE(N22:N33) -> 3.339166667 | O34: =MAX(O22:O33) -> 5.86
J36: =+A6 -> 2022 | K36: mg/Nm3 | L36: Monthly 1/2 hourly mean | M36: Monthly 1/2 hourly maximum | N36: Monthly daily mean | O36: Monthly daily maximum
J37: A3 | K37: Jan
K38: Feb
K39: Mar
K40: Apr
K41: May
K42: Jun
K43: Jul
K44: Aug
K45: Sep
K46: Oct
K47: Nov
A48: Comments : | K48: Dec
K49: Annual | L49: =AVERAGE(L37:L48) ->  | M49: =MAX(M37:M48) -> 0 | N49: =AVERAGE(N37:N48) ->  | O49: =MAX(O37:O48) -> 0
J51: =+A6 -> 2022 | K51: mg/Nm3 | L51: Monthly 1/2 hourly mean | M51: Monthly 1/2 hourly maximum | N51: Monthly daily mean | O51: Monthly daily maximum
J52: A4 | K52: Jan
K53: Feb
K54: Mar
K55: Apr
K56: May
K57: Jun
K58: Jul
K59: Aug
K60: Sep
K61: Oct
K62: Nov
K63: Dec
K64: Annual | L64: =AVERAGE(L52:L63) ->  | M64: =MAX(M52:M63) -> 0 | N64: =AVERAGE(N52:N63) ->  | O64: =MAX(O52:O63) -> 0
J66: =+A6 -> 2022 | K66: mg/Nm3 | L66: Monthly 1/2 hourly mean | M66: Monthly 1/2 hourly maximum | N66: Monthly daily mean | O66: Monthly daily maximum
J67: A5 | K67: Jan
K68: Feb
K69: Mar
K70: Apr
K71: May
K72: Jun
K73: Jul
K74: Aug
K75: Sep
K76: Oct
K77: Nov
K78: Dec
K79: Annual | L79: =AVERAGE(L67:L78) ->  | M79: =MAX(M67:M78) -> 0 | N79: =AVERAGE(N67:N78) ->  | O79: =MAX(O67:O78) -> 0

Sheet SO2
A1: =+'Cover Page'!$B$29 -> Annual Performance Report 2022 | E1: =+'Cover Page'!$B$33 -> Lakeside EFW Ltd
A3: Monitoring of Sulphur dioxide emissions | D3: Whole Installation | G3: See Notes in Cell Q3 | J3: =+A3 -> Monitoring of Sulphur dioxide emissions | N3: Per Combustion Line | Q3: Notes:
Q4: User to add logic to complete Whole installation, Table A5:G18. From the data in Per Combustion Line, Table J6:O79, subject to No. of lines installed
A5: mg/Nm3 | B5: 1/2 Hourly Reference Periods | E5: Daily Reference Periods
A6: =+'Cover Page'!C39 -> 2022 | B6: 1/2 hourly SO2 ELV | C6: Monthly 1/2 hourly mean | D6: Highest 1/2 hourly maximum | E6: Daily SO2 ELV | F6: Monthly daily mean | G6: Highest daily maximum | J6: =+A6 -> 2022 | K6: mg/Nm3 | L6: Monthly 1/2 hourly mean | M6: Monthly 1/2 hourly maximum | N6: Monthly daily mean | O6: Monthly daily maximum
A7: Jan | B7: 200 | C7: 6.54 | D7: 1316.36 | E7: 50 | F7: 6.54 | G7: 40.35 | J7: A1 | K7: Jan | L7: 4.79 | M7: 51.39 | N7: 4.79 | O7: 6.01
A8: Feb | B8: 200 | C8: 6.66 | D8: 18.85 | E8: 50 | F8: 6.7 | G8: 9.85 | K8: Feb | L8: 5.27 | M8: 18.85 | N8: 5.32 | O8: 7.6
A9: Mar | B9: 200 | C9: 7.59 | D9: 14.86 | E9: 50 | F9: 7.59 | G9: 10.93 | K9: Mar | L9: 6.45 | M9: 14.27 | N9: 6.45 | O9: 7.51 | Q9: Whole Installation table A5:G18:
A10: Apr | B10: 200 | C10: 7.78 | D10: 44.22 | E10: 50 | F10: 7.61 | G10: 10.1 | K10: Apr | L10: 6.97 | M10: 44.22 | N10: 6.92 | O10: 7.91 | Q10: Mean: for 1/2 hourly and daily periods calculate mean of values across all operational combustion lines for the month
A11: May | B11: 200 | C11: 7.24 | D11: 15.58 | E11: 50 | F11: 7.27 | G11: 9.1 | K11: May | L11: 6.34 | M11: 11.3 | N11: 6.37 | O11: 7.3
A12: Jun | B12: 200 | C12: 6.66 | D12: 36.99 | E12: 50 | F12: 6.62 | G12: 10.01 | K12: Jun | L12: 5.58 | M12: 36.99 | N12: 5.58 | O12: 7.1
A13: Jul | B13: 200 | C13: 8.28 | D13: 25.55 | E13: 50 | F13: 8.27 | G13: 11.91 | K13: Jul | L13: 9.76 | M13: 24.73 | N13: 9.78 | O13: 11.91 | Q13: Maximum: for 1/2 hourly and daily periods use the highest value across all operational combustion lines for the month
A14: Aug | B14: 200 | C14: 8.91 | D14: 36.63 | E14: 50 | F14: 8.91 | G14: 14.3 | K14: Aug | L14: 11.24 | M14: 36.63 | N14: 11.24 | O14: 14.3
A15: Sep | B15: 200 | C15: 7.05 | D15: 70.92 | E15: 50 | F15: 7.02 | G15: 11.85 | K15: Sep | L15: 7.93 | M15: 70.92 | N15: 7.87 | O15: 11.85
A16: Oct | B16: 200 | C16: 6.23 | D16: 19.12 | E16: 50 | F16: 6.24 | G16: 7.8 | K16: Oct | L16: 5.67 | M16: 19.12 | N16: 5.67 | O16: 6.73
A17: Nov | B17: 200 | C17: 6.67 | D17: 20.93 | E17: 50 | F17: 6.68 | G17: 9.59 | K17: Nov | L17: 6.36 | M17: 14.58 | N17: 6.37 | O17: 7.92
A18: Dec | B18: 200 | C18: 6.54 | D18: 31.85 | E18: 50 | F18: 6.56 | G18: 10.38 | K18: Dec | L18: 5.05 | M18: 31.85 | N18: 5.04 | O18: 7.58
K19: Annual | L19: =AVERAGE(L7:L18) -> 6.784166667 | M19: =MAX(M7:M18) -> 70.92 | N19: =AVERAGE(N7:N18) -> 6.783333333 | O19: =MAX(O7:O18) -> 14.3
J21: =+A6 -> 2022 | K21: mg/Nm3 | L21: Monthly 1/2 hourly mean | M21: Monthly 1/2 hourly maximum | N21: Monthly daily mean | O21: Monthly daily maximum
J22: A2 | K22: Jan | L22: 8.28 | M22: 1316.36 | N22: 8.28 | O22: 40.35
K23: Feb | L23: 8.03 | M23: 11.41 | N23: 8.03 | O23: 9.85
K24: Mar | L24: 8.73 | M24: 14.86 | N24: 8.73 | O24: 10.93
K25: Apr | L25: 8.98 | M25: 37.24 | N25: 8.7 | O25: 10.1
K26: May | L26: 7.99 | M26: 15.58 | N26: 7.99 | O26: 9.1
K27: Jun | L27: 7.93 | M27: 34.94 | N27: 7.87 | O27: 10.01
K28: Jul | L28: 6.81 | M28: 25.55 | N28: 6.81 | O28: 7.52
K29: Aug | L29: 6.58 | M29: 17.06 | N29: 6.58 | O29: 8.18
K30: Sep | L30: 6.19 | M30: 11.71 | N30: 6.19 | O30: 6.74
K31: Oct | L31: 6.82 | M31: 14.74 | N31: 6.84 | O31: 7.8
K32: Nov | L32: 7.04 | M32: 20.93 | N32: 7.05 | O32: 9.59
K33: Dec | L33: 7.78 | M33: 17.04 | N33: 7.78 | O33: 10.38
K34: Annual | L34: =AVERAGE(L22:L33) -> 7.596666667 | M34: =MAX(M22:M33) -> 1316.36 | N34: =AVERAGE(N22:N33) -> 7.570833333 | O34: =MAX(O22:O33) -> 40.35
J36: =+A6 -> 2022 | K36: mg/Nm3 | L36: Monthly 1/2 hourly mean | M36: Monthly 1/2 hourly maximum | N36: Monthly daily mean | O36: Monthly daily maximum
J37: A3 | K37: Jan
K38: Feb
K39: Mar
K40: Apr
K41: May
K42: Jun
K43: Jul
K44: Aug
K45: Sep
K46: Oct
K47: Nov
A48: Comments : | K48: Dec
K49: Annual | L49: =AVERAGE(L37:L48) ->  | M49: =MAX(M37:M48) -> 0 | N49: =AVERAGE(N37:N48) ->  | O49: =MAX(O37:O48) -> 0
J51: =+A6 -> 2022 | K51: mg/Nm3 | L51: Monthly 1/2 hourly mean | M51: Monthly 1/2 hourly maximum | N51: Monthly daily mean | O51: Monthly daily maximum
J52: A4 | K52: Jan
K53: Feb
K54: Mar
K55: Apr
K56: May
K57: Jun
K58: Jul
K59: Aug
K60: Sep
K61: Oct
K62: Nov
K63: Dec
K64: Annual | L64: =AVERAGE(L52:L63) ->  | M64: =MAX(M52:M63) -> 0 | N64: =AVERAGE(N52:N63) ->  | O64: =MAX(O52:O63) -> 0
J66: =+A6 -> 2022 | K66: mg/Nm3 | L66: Monthly 1/2 hourly mean | M66: Monthly 1/2 hourly maximum | N66: Monthly daily mean | O66: Monthly daily maximum
J67: A5 | K67: Jan
K68: Feb
K69: Mar
K70: Apr
K71: May
K72: Jun
K73: Jul
K74: Aug
K75: Sep
K76: Oct
K77: Nov
K78: Dec
K79: Annual | L79: =AVERAGE(L67:L78) ->  | M79: =MAX(M67:M78) -> 0 | N79: =AVERAGE(N67:N78) ->  | O79: =MAX(O67:O78) -> 0

Sheet NOx
A1: =+'Cover Page'!$B$29 -> Annual Performance Report 2022 | E1: =+'Cover Page'!$B$33 -> Lakeside EFW Ltd
A3: Monitoring of Oxides of Nitrogen emissions | D3: Whole Installation | G3: See Notes in Cell Q3 | J3: =+A3 -> Monitoring of Oxides of Nitrogen emissions | N3: Per Combustion Line | Q3: Notes:
Q4: User to add logic to complete Whole installation, Table A5:G18. From the data in Per Combustion Line, Table J6:O79, subject to No. of lines installed
A5: mg/Nm3 | B5: 1/2 Hourly Reference Periods | E5: Daily Reference Periods
A6: =+'Cover Page'!C39 -> 2022 | B6: 1/2 hourly NOx ELV | C6: Monthly 1/2 hourly mean | D6: Highest 1/2 hourly maximum | E6: Daily NOx ELV | F6: Monthly daily mean | G6: Highest daily maximum | J6: =+A6 -> 2022 | K6: mg/Nm3 | L6: Monthly 1/2 hourly mean | M6: Monthly 1/2 hourly maximum | N6: Monthly daily mean | O6: Monthly daily maximum
A7: Jan | B7: 400 | C7: 176.63 | D7: 381.52 | E7: 200 | F7: 176.63 | G7: 198.87 | J7: A1 | K7: Jan | L7: 193.11 | M7: 262.83 | N7: 193.11 | O7: 198.87
A8: Feb | B8: 400 | C8: 174.81 | D8: 301.26 | E8: 200 | F8: 174.43 | G8: 196.77 | K8: Feb | L8: 186.92 | M8: 301.26 | N8: 186.49 | O8: 196.77
A9: Mar | B9: 400 | C9: 170.95 | D9: 266.96 | E9: 200 | F9: 170.95 | G9: 184.8 | K9: Mar | L9: 175.74 | M9: 255.65 | N9: 175.74 | O9: 184.8 | Q9: Whole Installation table A5:G18:
A10: Apr | B10: 400 | C10: 174.97 | D10: 343.53 | E10: 200 | F10: 174.53 | G10: 192.51 | K10: Apr | L10: 178.77 | M10: 279.91 | N10: 178.88 | O10: 192.51 | Q10: Mean: for 1/2 hourly and daily periods calculate mean of values across all operational combustion lines for the month
A11: May | B11: 400 | C11: 165.66 | D11: 283.08 | E11: 200 | F11: 165.76 | G11: 190.2 | K11: May | L11: 170.66 | M11: 256.4 | N11: 171.04 | O11: 190.2
A12: Jun | B12: 400 | C12: 165.11 | D12: 256.17 | E12: 200 | F12: 166.09 | G12: 188.3 | K12: Jun | L12: 174.03 | M12: 237.69 | N12: 174.03 | O12: 188.3
A13: Jul | B13: 400 | C13: 153.15 | D13: 246.34 | E13: 200 | F13: 153.25 | G13: 168 | K13: Jul | L13: 156.73 | M13: 246.34 | N13: 157.03 | O13: 166.85 | Q13: Maximum: for 1/2 hourly and daily periods use the highest value across all operational combustion lines for the month
A14: Aug | B14: 400 | C14: 141.43 | D14: 222.7 | E14: 200 | F14: 141.44 | G14: 165.1 | K14: Aug | L14: 142.55 | M14: 222.7 | N14: 142.57 | O14: 165.1
A15: Sep | B15: 400 | C15: 147.33 | D15: 292.27 | E15: 200 | F15: 147.02 | G15: 166.56 | K15: Sep | L15: 157.83 | M15: 292.27 | N15: 157.3 | O15: 166.56
A16: Oct | B16: 400 | C16: 146.67 | D16: 225.65 | E16: 200 | F16: 146.83 | G16: 175 | K16: Oct | L16: 160.9 | M16: 204.33 | N16: 160.9 | O16: 175
A17: Nov | B17: 400 | C17: 158.17 | D17: 263.43 | E17: 200 | F17: 158.19 | G17: 183.43 | K17: Nov | L17: 164.1 | M17: 251.24 | N17: 164.14 | O17: 183.43
A18: Dec | B18: 400 | C18: 152.98 | D18: 228.63 | E18: 200 | F18: 152.85 | G18: 182.3 | K18: Dec | L18: 164.23 | M18: 228.63 | N18: 164.32 | O18: 182.3
K19: Annual | L19: =AVERAGE(L7:L18) -> 168.7975 | M19: =MAX(M7:M18) -> 301.26 | N19: =AVERAGE(N7:N18) -> 168.7958333 | O19: =MAX(O7:O18) -> 198.87
J21: =+A6 -> 2022 | K21: mg/Nm3 | L21: Monthly 1/2 hourly mean | M21: Monthly 1/2 hourly maximum | N21: Monthly daily mean | O21: Monthly daily maximum
J22: A2 | K22: Jan | L22: 160.17 | M22: 381.52 | N22: 160.16 | O22: 186.99
K23: Feb | L23: 162.81 | M23: 230.4 | N23: 162.81 | O23: 181.56
K24: Mar | L24: 166.15 | M24: 266.96 | N24: 166.17 | O24: 182.18
K25: Apr | L25: 169.3 | M25: 343.53 | N25: 167.52 | O25: 172.96
K26: May | L26: 161.51 | M26: 283.08 | N26: 161.51 | O26: 189.54
K27: Jun | L27: 154.65 | M27: 256.17 | N27: 156.56 | O27: 187.36
K28: Jul | L28: 149.6 | M28: 235.31 | N28: 149.6 | O28: 168
K29: Aug | L29: 140.31 | M29: 211.56 | N29: 140.31 | O29: 148.5
K30: Sep | L30: 137.08 | M30: 211.45 | N30: 137.08 | O30: 148.47
K31: Oct | L31: 131.86 | M31: 225.65 | N31: 131.8 | O31: 140.96
K32: Nov | L32: 151.07 | M32: 263.43 | N32: 151.05 | O32: 169.01
K33: Dec | L33: 143.61 | M33: 215.66 | N33: 143.6 | O33: 165.81
K34: Annual | L34: =AVERAGE(L22:L33) -> 152.3433333 | M34: =MAX(M22:M33) -> 381.52 | N34: =AVERAGE(N22:N33) -> 152.3475 | O34: =MAX(O22:O33) -> 189.54
J36: =+A6 -> 2022 | K36: mg/Nm3 | L36: Monthly 1/2 hourly mean | M36: Monthly 1/2 hourly maximum | N36: Monthly daily mean | O36: Monthly daily maximum
J37: A3 | K37: Jan
K38: Feb
K39: Mar
K40: Apr
K41: May
K42: Jun
K43: Jul
K44: Aug
K45: Sep
K46: Oct
K47: Nov
A48: Comments : | K48: Dec
K49: Annual | L49: =AVERAGE(L37:L48) ->  | M49: =MAX(M37:M48) -> 0 | N49: =AVERAGE(N37:N48) ->  | O49: =MAX(O37:O48) -> 0
J51: =+A6 -> 2022 | K51: mg/Nm3 | L51: Monthly 1/2 hourly mean | M51: Monthly 1/2 hourly maximum | N51: Monthly daily mean | O51: Monthly daily maximum
J52: A4 | K52: Jan
K53: Feb
K54: Mar
K55: Apr
K56: May
K57: Jun
K58: Jul
K59: Aug
K60: Sep
K61: Oct
K62: Nov
K63: Dec
K64: Annual | L64: =AVERAGE(L52:L63) ->  | M64: =MAX(M52:M63) -> 0 | N64: =AVERAGE(N52:N63) ->  | O64: =MAX(O52:O63) -> 0
J66: =+A6 -> 2022 | K66: mg/Nm3 | L66: Monthly 1/2 hourly mean | M66: Monthly 1/2 hourly maximum | N66: Monthly daily mean | O66: Monthly daily maximum
J67: A5 | K67: Jan
K68: Feb
K69: Mar
K70: Apr
K71: May
K72: Jun
K73: Jul
K74: Aug
K75: Sep
K76: Oct
K77: Nov
K78: Dec
K79: Annual | L79: =AVERAGE(L67:L78) ->  | M79: =MAX(M67:M78) -> 0 | N79: =AVERAGE(N67:N78) ->  | O79: =MAX(O67:O78) -> 0

Sheet TOC
A1: =+'Cover Page'!$B$29 -> Annual Performance Report 2022 | E1: =+'Cover Page'!$B$33 -> Lakeside EFW Ltd
A3: Monitoring of Total organic carbon emissions | D3: Whole Installation | G3: See Notes in Cell Q3 | J3: =+A3 -> Monitoring of Total organic carbon emissions | N3: Per Combustion Line | Q3: Notes:
Q4: User to add logic to complete Whole installation, Table A5:G18. From the data in Per Combustion Line, Table J6:O79, subject to No. of lines installed
A5: mg/Nm3 | B5: 1/2 Hourly Reference Periods | E5: Daily Reference Periods
A6: =+'Cover Page'!C39 -> 2022 | B6: 1/2 hourly TOC ELV | C6: Monthly 1/2 hourly mean | D6: Highest 1/2 hourly maximum | E6: Daily TOC ELV | F6: Monthly daily mean | G6: Highest daily maximum | J6: =+A6 -> 2022 | K6: mg/Nm3 | L6: Monthly 1/2 hourly mean | M6: Monthly 1/2 hourly maximum | N6: Monthly daily mean | O6: Monthly daily maximum
A7: Jan | B7: 20 | C7: 0.24 | D7: 3.73 | E7: 10 | F7: 0.24 | G7: 0.44 | J7: A1 | K7: Jan | L7: 0.28 | M7: 3.73 | N7: 0.28 | O7: 0.44
A8: Feb | B8: 20 | C8: 0.32 | D8: 5.26 | E8: 10 | F8: 0.32 | G8: 0.98 | K8: Feb | L8: 0.28 | M8: 5.26 | N8: 0.29 | O8: 0.98
A9: Mar | B9: 20 | C9: 0.34 | D9: 4.8 | E9: 10 | F9: 0.34 | G9: 0.98 | K9: Mar | L9: 0.33 | M9: 4.8 | N9: 0.33 | O9: 0.98 | Q9: Whole Installation table A5:G18:
A10: Apr | B10: 20 | C10: -1.51 | D10: 35.15 | E10: 10 | F10: -0.45 | G10: 2.18 | K10: Apr | L10: -2.69 | M10: 35.15 | N10: -0.9 | O10: 1.83 | Q10: Mean: for 1/2 hourly and daily periods calculate mean of values across all operational combustion lines for the month
A11: May | B11: 20 | C11: 0.06 | D11: 2.92 | E11: 10 | F11: 0.06 | G11: 0.33 | K11: May | L11: -0.02 | M11: 2.88 | N11: -0.02 | O11: 0.27
A12: Jun | B12: 20 | C12: 0.55 | D12: 13.31 | E12: 10 | F12: 0.48 | G12: 0.94 | K12: Jun | L12: 0.54 | M12: 6.55 | N12: 0.54 | O12: 0.87
A13: Jul | B13: 20 | C13: 0.26 | D13: 4.17 | E13: 10 | F13: 0.26 | G13: 0.52 | K13: Jul | L13: 0.09 | M13: 4.17 | N13: 0.09 | O13: 0.5 | Q13: Maximum: for 1/2 hourly and daily periods use the highest value across all operational combustion lines for the month
A14: Aug | B14: 20 | C14: 0.26 | D14: 6.29 | E14: 10 | F14: 0.26 | G14: 0.62 | K14: Aug | L14: 0.07 | M14: 4.94 | N14: 0.07 | O14: 0.19
A15: Sep | B15: 20 | C15: 0.44 | D15: 252.49 | E15: 10 | F15: 0.29 | G15: 0.61 | K15: Sep | L15: 0.41 | M15: 252.49 | N15: 0.1 | O15: 0.39
A16: Oct | B16: 20 | C16: 0.28 | D16: 7.23 | E16: 10 | F16: 0.28 | G16: 0.61 | K16: Oct | L16: 0.09 | M16: 7.23 | N16: 0.09 | O16: 0.26
A17: Nov | B17: 20 | C17: 0.11 | D17: 5.39 | E17: 10 | F17: 0.11 | G17: 0.34 | K17: Nov | L17: 0.07 | M17: 2.66 | N17: 0.07 | O17: 0.23
A18: Dec | B18: 20 | C18: 0.16 | D18: 18.07 | E18: 10 | F18: 0.16 | G18: 0.6 | K18: Dec | L18: 0.11 | M18: 18.07 | N18: 0.1 | O18: 0.6
K19: Annual | L19: =AVERAGE(L7:L18) -> -0.03666666667 | M19: =MAX(M7:M18) -> 252.49 | N19: =AVERAGE(N7:N18) -> 0.08666666667 | O19: =MAX(O7:O18) -> 1.83
J21: =+A6 -> 2022 | K21: mg/Nm3 | L21: Monthly 1/2 hourly mean | M21: Monthly 1/2 hourly maximum | N21: Monthly daily mean | O21: Monthly daily maximum
J22: A2 | K22: Jan | L22: 0.2 | M22: 2.74 | N22: 0.2 | O22: 0.39
K23: Feb | L23: 0.35 | M23: 4.23 | N23: 0.35 | O23: 0.67
K24: Mar | L24: 0.35 | M24: 3.51 | N24: 0.35 | O24: 0.84
K25: Apr | L25: 0.26 | M25: 30.71 | N25: 0.27 | O25: 2.18
K26: May | L26: 0.12 | M26: 2.92 | N26: 0.12 | O26: 0.33
K27: Jun | L27: 0.56 | M27: 13.31 | N27: 0.4 | O27: 0.94
K28: Jul | L28: 0.43 | M28: 3.83 | N28: 0.43 | O28: 0.52
K29: Aug | L29: 0.46 | M29: 6.29 | N29: 0.46 | O29: 0.62
K30: Sep | L30: 0.47 | M30: 5.21 | N30: 0.47 | O30: 0.61
K31: Oct | L31: 0.48 | M31: 5.56 | N31: 0.49 | O31: 0.61
K32: Nov | L32: 0.15 | M32: 5.39 | N32: 0.15 | O32: 0.34
K33: Dec | L33: 0.21 | M33: 3.37 | N33: 0.21 | O33: 0.31
K34: Annual | L34: =AVERAGE(L22:L33) -> 0.3366666667 | M34: =MAX(M22:M33) -> 30.71 | N34: =AVERAGE(N22:N33) -> 0.325 | O34: =MAX(O22:O33) -> 2.18
J36: =+A6 -> 2022 | K36: mg/Nm3 | L36: Monthly 1/2 hourly mean | M36: Monthly 1/2 hourly maximum | N36: Monthly daily mean | O36: Monthly daily maximum
J37: A3 | K37: Jan
K38: Feb
K39: Mar
K40: Apr
K41: May
K42: Jun
K43: Jul
K44: Aug
K45: Sep
K46: Oct
K47: Nov
A48: Comments : | K48: Dec
K49: Annual | L49: =AVERAGE(L37:L48) ->  | M49: =MAX(M37:M48) -> 0 | N49: =AVERAGE(N37:N48) ->  | O49: =MAX(O37:O48) -> 0
J51: =+A6 -> 2022 | K51: mg/Nm3 | L51: Monthly 1/2 hourly mean | M51: Monthly 1/2 hourly maximum | N51: Monthly daily mean | O51: Monthly daily maximum
J52: A4 | K52: Jan
K53: Feb
K54: Mar
K55: Apr
K56: May
K57: Jun
K58: Jul
K59: Aug
K60: Sep
K61: Oct
K62: Nov
K63: Dec
K64: Annual | L64: =AVERAGE(L52:L63) ->  | M64: =MAX(M52:M63) -> 0 | N64: =AVERAGE(N52:N63) ->  | O64: =MAX(O52:O63) -> 0
J66: =+A6 -> 2022 | K66: mg/Nm3 | L66: Monthly 1/2 hourly mean | M66: Monthly 1/2 hourly maximum | N66: Monthly daily mean | O66: Monthly daily maximum
J67: A5 | K67: Jan
K68: Feb
K69: Mar
K70: Apr
K71: May
K72: Jun
K73: Jul
K74: Aug
K75: Sep
K76: Oct
K77: Nov
K78: Dec
K79: Annual | L79: =AVERAGE(L67:L78) ->  | M79: =MAX(M67:M78) -> 0 | N79: =AVERAGE(N67:N78) ->  | O79: =MAX(O67:O78) -> 0

Sheet Particulates
A1: =+'Cover Page'!$B$29 -> Annual Performance Report 2022 | E1: =+'Cover Page'!$B$33 -> Lakeside EFW Ltd
A3: Monitoring of Particulate matter emissions | D3: Whole Installation | G3: See Notes in Cell Q3 | J3: =+A3 -> Monitoring of Particulate matter emissions | N3: Per Combustion Line | Q3: Notes:
Q4: User to add logic to complete Whole installation, Table A5:G18. From the data in Per Combustion Line, Table J6:O79, subject to No. of lines installed
A5: mg/Nm3 | B5: 1/2 Hourly Reference Periods | E5: Daily Reference Periods
A6: =+'Cover Page'!C39 -> 2022 | B6: 1/2 hourly PM ELV | C6: Monthly 1/2 hourly mean | D6: Highest 1/2 hourly maximum | E6: Daily PM ELV | F6: Monthly daily mean | G6: Highest daily maximum | J6: =+A6 -> 2022 | K6: mg/Nm3 | L6: Monthly 1/2 hourly mean | M6: Monthly 1/2 hourly maximum | N6: Monthly daily mean | O6: Monthly daily maximum
A7: Jan | B7: 30 | C7: 0 | D7: 2.2 | E7: 10 | F7: 0 | G7: 0.15 | J7: A1 | K7: Jan | L7: -0.11 | M7: 0.52 | N7: -0.11 | O7: -0.09
A8: Feb | B8: 30 | C8: 0.03 | D8: 0.93 | E8: 10 | F8: 0.03 | G8: 0.18 | K8: Feb | L8: -0.09 | M8: 0.93 | N8: -0.09 | O8: -0.03
A9: Mar | B9: 30 | C9: 0.45 | D9: 7.74 | E9: 10 | F9: 0.45 | G9: 5.84 | K9: Mar | L9: -0.05 | M9: 0.83 | N9: -0.05 | O9: 0.29 | Q9: Whole Installation table A5:G18:
A10: Apr | B10: 30 | C10: 0.18 | D10: 7.5 | E10: 10 | F10: 0.18 | G10: 2.02 | K10: Apr | L10: 0.11 | M10: 0.31 | N10: 0.11 | O10: 0.21 | Q10: Mean: for 1/2 hourly and daily periods calculate mean of values across all operational combustion lines for the month
A11: May | B11: 30 | C11: 0.14 | D11: 3.15 | E11: 10 | F11: 0.14 | G11: 0.25 | K11: May | L11: 0.14 | M11: 3.15 | N11: 0.14 | O11: 0.25
A12: Jun | B12: 30 | C12: 0.16 | D12: 4.82 | E12: 10 | F12: 0.15 | G12: 0.73 | K12: Jun | L12: 0.13 | M12: 0.32 | N12: 0.13 | O12: 0.15
A13: Jul | B13: 30 | C13: 0.26 | D13: 12.19 | E13: 10 | F13: 0.26 | G13: 5.65 | K13: Jul | L13: 0.14 | M13: 0.59 | N13: 0.14 | O13: 0.17 | Q13: Maximum: for 1/2 hourly and daily periods use the highest value across all operational combustion lines for the month
A14: Aug | B14: 30 | C14: 0.16 | D14: 1.37 | E14: 10 | F14: 0.16 | G14: 0.47 | K14: Aug | L14: 0.13 | M14: 1.37 | N14: 0.13 | O14: 0.25
A15: Sep | B15: 30 | C15: 0.24 | D15: 3.79 | E15: 10 | F15: 0.24 | G15: 0.91 | K15: Sep | L15: 0.16 | M15: 1.76 | N15: 0.16 | O15: 0.3
A16: Oct | B16: 30 | C16: 0.18 | D16: 1.9 | E16: 10 | F16: 0.18 | G16: 0.56 | K16: Oct | L16: 0.17 | M16: 1.9 | N16: 0.17 | O16: 0.56
A17: Nov | B17: 30 | C17: 0.22 | D17: 9.59 | E17: 10 | F17: 0.22 | G17: 2.31 | K17: Nov | L17: 0.21 | M17: 9.59 | N17: 0.21 | O17: 2.31
A18: Dec | B18: 30 | C18: 0.26 | D18: 0.76 | E18: 10 | F18: 0.26 | G18: 0.56 | K18: Dec | L18: 0.13 | M18: 0.46 | N18: 0.14 | O18: 0.23
K19: Annual | L19: =AVERAGE(L7:L18) -> 0.08916666667 | M19: =MAX(M7:M18) -> 9.59 | N19: =AVERAGE(N7:N18) -> 0.09 | O19: =MAX(O7:O18) -> 2.31
J21: =+A6 -> 2022 | K21: mg/Nm3 | L21: Monthly 1/2 hourly mean | M21: Monthly 1/2 hourly maximum | N21: Monthly daily mean | O21: Monthly daily maximum
J22: A2 | K22: Jan | L22: 0.11 | M22: 2.2 | N22: 0.11 | O22: 0.15
K23: Feb | L23: 0.14 | M23: 0.24 | N23: 0.14 | O23: 0.18
K24: Mar | L24: 0.94 | M24: 7.74 | N24: 0.94 | O24: 5.84
K25: Apr | L25: 0.28 | M25: 7.5 | N25: 0.29 | O25: 2.02
K26: May | L26: 0.14 | M26: 0.98 | N26: 0.14 | O26: 0.19
K27: Jun | L27: 0.2 | M27: 4.82 | N27: 0.19 | O27: 0.73
K28: Jul | L28: 0.38 | M28: 12.19 | N28: 0.38 | O28: 5.65
K29: Aug | L29: 0.19 | M29: 1.02 | N29: 0.19 | O29: 0.47
K30: Sep | L30: 0.31 | M30: 3.79 | N30: 0.31 | O30: 0.91
K31: Oct | L31: 0.19 | M31: 0.9 | N31: 0.19 | O31: 0.43
K32: Nov | L32: 0.22 | M32: 1.83 | N32: 0.22 | O32: 0.41
K33: Dec | L33: 0.37 | M33: 0.76 | N33: 0.37 | O33: 0.56
K34: Annual | L34: =AVERAGE(L22:L33) -> 0.2891666667 | M34: =MAX(M22:M33) -> 12.19 | N34: =AVERAGE(N22:N33) -> 0.2891666667 | O34: =MAX(O22:O33) -> 5.84
J36: =+A6 -> 2022 | K36: mg/Nm3 | L36: Monthly 1/2 hourly mean | M36: Monthly 1/2 hourly maximum | N36: Monthly daily mean | O36: Monthly daily maximum
J37: A3 | K37: Jan
K38: Feb
K39: Mar
K40: Apr
K41: May
K42: Jun
K43: Jul
K44: Aug
K45: Sep
K46: Oct
K47: Nov
A48: Comments : | K48: Dec
K49: Annual | L49: =AVERAGE(L37:L48) ->  | M49: =MAX(M37:M48) -> 0 | N49: =AVERAGE(N37:N48) ->  | O49: =MAX(O37:O48) -> 0
J51: =+A6 -> 2022 | K51: mg/Nm3 | L51: Monthly 1/2 hourly mean | M51: Monthly 1/2 hourly maximum | N51: Monthly daily mean | O51: Monthly daily maximum
J52: A4 | K52: Jan
K53: Feb
K54: Mar
K55: Apr
K56: May
K57: Jun
K58: Jul
K59: Aug
K60: Sep
K61: Oct
K62: Nov
K63: Dec
K64: Annual | L64: =AVERAGE(L52:L63) ->  | M64: =MAX(M52:M63) -> 0 | N64: =AVERAGE(N52:N63) ->  | O64: =MAX(O52:O63) -> 0
J66: =+A6 -> 2022 | K66: mg/Nm3 | L66: Monthly 1/2 hourly mean | M66: Monthly 1/2 hourly maximum | N66: Monthly daily mean | O66: Monthly daily maximum
J67: A5 | K67: Jan
K68: Feb
K69: Mar
K70: Apr
K71: May
K72: Jun
K73: Jul
K74: Aug
K75: Sep
K76: Oct
K77: Nov
K78: Dec
K79: Annual | L79: =AVERAGE(L67:L78) ->  | M79: =MAX(M67:M78) -> 0 | N79: =AVERAGE(N67:N78) ->  | O79: =MAX(O67:O78) -> 0

Sheet CO 0.5hourly
A1: =+'Cover Page'!$B$29 -> Annual Performance Report 2022 | E1: =+'Cover Page'!$B$33 -> Lakeside EFW Ltd
A3: Monitoring of Carbon Monoxide (half hourly) | D3: Whole Installation | G3: See Notes in Cell Q3 | J3: =+A3 -> Monitoring of Carbon Monoxide (half hourly) | N3: Per Combustion Line | Q3: Notes:
Q4: User to add logic to complete Whole installation, Table A5:G18. From the data in Per Combustion Line, Table J6:O79, subject to No. of lines installed
A5: mg/Nm3 | B5: 1/2 Hourly Reference Periods | E5: Daily Reference Periods
A6: =+'Cover Page'!C39 -> 2022 | B6: 1/2 hourly CO ELV | C6: Monthly 1/2 hourly mean | D6: Highest 1/2 hourly maximum | E6: Daily CO ELV | F6: Monthly daily mean | G6: Highest daily maximum | J6: =+A6 -> 2022 | K6: mg/Nm3 | L6: Monthly 1/2 hourly mean | M6: Monthly 1/2 hourly maximum | N6: Monthly daily mean | O6: Monthly daily maximum
A7: Jan | B7: 100 | E7: 50 | J7: A1 | K7: Jan
A8: Feb | B8: =+B7 -> 100 | E8: =+E7 -> 50 | K8: Feb
A9: Mar | B9: =+B8 -> 100 | E9: =+E8 -> 50 | K9: Mar | Q9: Whole Installation table A5:G18:
A10: Apr | B10: 100 | E10: 50 | K10: Apr | Q10: Mean: for 1/2 hourly and daily periods calculate mean of values across all operational combustion lines for the month
A11: May | B11: 100 | E11: 50 | K11: May
A12: Jun | B12: 100 | E12: 50 | K12: Jun
A13: Jul | B13: 100 | E13: 50 | K13: Jul | Q13: Maximum: for 1/2 hourly and daily periods use the highest value across all operational combustion lines for the month
A14: Aug | B14: 100 | E14: 50 | K14: Aug
A15: Sep | B15: 100 | E15: 50 | K15: Sep
A16: Oct | B16: 100 | E16: 50 | K16: Oct
A17: Nov | B17: 100 | E17: 50 | K17: Nov
A18: Dec | B18: 100 | E18: 50 | K18: Dec
K19: Annual | L19: =AVERAGE(L7:L18) ->  | M19: =MAX(M7:M18) -> 0 | N19: =AVERAGE(N7:N18) ->  | O19: =MAX(O7:O18) -> 0
J21: =+A6 -> 2022 | K21: mg/Nm3 | L21: Monthly 1/2 hourly mean | M21: Monthly 1/2 hourly maximum | N21: Monthly daily mean | O21: Monthly daily maximum
J22: A2 | K22: Jan
K23: Feb
K24: Mar
K25: Apr
K26: May
K27: Jun
K28: Jul
K29: Aug
K30: Sep
K31: Oct
K32: Nov
K33: Dec
K34: Annual | L34: =AVERAGE(L22:L33) ->  | M34: =MAX(M22:M33) -> 0 | N34: =AVERAGE(N22:N33) ->  | O34: =MAX(O22:O33) -> 0
J36: =+A6 -> 2022 | K36: mg/Nm3 | L36: Monthly 1/2 hourly mean | M36: Monthly 1/2 hourly maximum | N36: Monthly daily mean | O36: Monthly daily maximum
J37: A3 | K37: Jan
K38: Feb
K39: Mar
K40: Apr
K41: May
K42: Jun
K43: Jul
K44: Aug
K45: Sep
K46: Oct
K47: Nov
A48: Comments : | K48: Dec
K49: Annual | L49: =AVERAGE(L37:L48) ->  | M49: =MAX(M37:M48) -> 0 | N49: =AVERAGE(N37:N48) ->  | O49: =MAX(O37:O48) -> 0
J51: =+A6 -> 2022 | K51: mg/Nm3 | L51: Monthly 1/2 hourly mean | M51: Monthly 1/2 hourly maximum | N51: Monthly daily mean | O51: Monthly daily maximum
J52: A4 | K52: Jan
K53: Feb
K54: Mar
K55: Apr
K56: May
K57: Jun
K58: Jul
K59: Aug
K60: Sep
K61: Oct
K62: Nov
K63: Dec
K64: Annual | L64: =AVERAGE(L52:L63) ->  | M64: =MAX(M52:M63) -> 0 | N64: =AVERAGE(N52:N63) ->  | O64: =MAX(O52:O63) -> 0
J66: =+A6 -> 2022 | K66: mg/Nm3 | L66: Monthly 1/2 hourly mean | M66: Monthly 1/2 hourly maximum | N66: Monthly daily mean | O66: Monthly daily maximum
J67: A5 | K67: Jan
K68: Feb
K69: Mar
K70: Apr
K71: May
K72: Jun
K73: Jul
K74: Aug
K75: Sep
K76: Oct
K77: Nov
K78: Dec
K79: Annual | L79: =AVERAGE(L67:L78) ->  | M79: =MAX(M67:M78) -> 0 | N79: =AVERAGE(N67:N78) ->  | O79: =MAX(O67:O78) -> 0

Sheet CO 95% 10 min
A1: =+'Cover Page'!$B$29 -> Annual Performance Report 2022 | E1: =+'Cover Page'!$B$33 -> Lakeside EFW Ltd
A3: Monitoring of Carbon Monoxide (10-minute avg) | E3: Whole Installation | H3: See Notes in Cell S3 | J3: =+A3 -> Monitoring of Carbon Monoxide (10-minute avg) | O3: Per Combustion Line | Q3: Notes: | S3: Notes:
S4: User to add logic to complete Whole installation, Table A5:H18. From the data in Per Combustion Line, Table K6:Q79, subject to No. of lines installed
A5: mg/Nm3 | B5: 10-minute Reference Periods | F5: Daily Reference Periods
A6: =+'Cover Page'!C39 -> 2022 | B6: 95%ile 10-min avg CO ELV | C6: 95%ile 10-min avg maximum | D6: Monthly CO 10-min avg mean | E6: 10-min avg maximum | F6: Daily CO ELV | G6: Monthly daily mean | H6: Highest daily maximum | K6: =+A6 -> 2022 | L6: mg/Nm3 | M6: 95%ile 10-min avg maximum | N6: Monthly CO 10-min avg mean | O6: 10-min avg maximum | P6: Monthly daily mean | Q6: Monthly daily maximum
A7: Jan | B7: 150 | C7: 20.07 | D7: 2.95 | E7: 679.89 | F7: 50 | G7: 2.95 | H7: 11.06 | K7: A1 | L7: Jan | M7: 14.02 | N7: 1.65 | O7: 679.89 | P7: 1.65 | Q7: 6.37
A8: Feb | B8: =+B7 -> 150 | C8: 17.76 | D8: 3.14 | E8: 884.16 | F8: =+F7 -> 50 | G8: 3.16 | H8: 7.55 | L8: Feb | M8: 10.46 | N8: 3.01 | O8: 884.16 | P8: 3.04 | Q8: 7.55
A9: Mar | B9: =+B8 -> 150 | C9: 14.4 | D9: 2.84 | E9: 642.89 | F9: =+F8 -> 50 | G9: 2.83 | H9: 9.08 | L9: Mar | M9: 14.4 | N9: 3.92 | O9: 571.76 | P9: 3.92 | Q9: 9.08 | S9: Whole Installation table A5:H18:
A10: Apr | B10: 150 | C10: 39.02 | D10: 4.01 | E10: 703.96 | F10: 50 | G10: 3.86 | H10: 8.11 | L10: Apr | M10: 27.95 | N10: 5.2 | O10: 703.96 | P10: 5.08 | Q10: 8.11 | S10: Mean: for 10-min and daily periods use average of all operational combustion lines.
A11: May | B11: 150 | C11: 21.54 | D11: 3.73 | E11: 364.81 | F11: 50 | G11: 3.75 | H11: 8.69 | L11: May | M11: 18.54 | N11: 5 | O11: 364.81 | P11: 5.09 | Q11: 8.69
A12: Jun | B12: 150 | C12: 37.07 | D12: 4.54 | E12: 425.53 | F12: 50 | G12: 4.56 | H12: 9.89 | L12: Jun | M12: 37.07 | N12: 5.49 | O12: 425.53 | P12: 5.49 | Q12: 9.89
A13: Jul | B13: 150 | C13: 58.69 | D13: 3.14 | E13: 552.64 | F13: 50 | G13: 3.14 | H13: 7.72 | L13: Jul | M13: 58.69 | N13: 4.39 | O13: 552.64 | P13: 4.43 | Q13: 7.72 | S13: Maximum: for 10-min and daily periods use the highest of all operational combustion lines in any month.
A14: Aug | B14: 150 | C14: 31.02 | D14: 4.37 | E14: 1193.63 | F14: 50 | G14: 4.37 | H14: 13.11 | L14: Aug | M14: 31.02 | N14: 4.28 | O14: 720.45 | P14: 4.28 | Q14: 9.5
A15: Sep | B15: 150 | C15: 2846.34 | D15: 13.53 | E15: 3152.87 | F15: 50 | G15: 12.27 | H15: 438.08 | L15: Sep | M15: 2846.34 | N15: 22.27 | O15: 3152.87 | P15: 19.82 | Q15: 438.08
A16: Oct | B16: 150 | C16: 51.6 | D16: 5.45 | E16: 1244.44 | F16: 50 | G16: 5.46 | H16: 17.31 | L16: Oct | M16: 51.6 | N16: 4.92 | O16: 1244.44 | P16: 4.92 | Q16: 17.31
A17: Nov | B17: 150 | C17: 60.83 | D17: 4.81 | E17: 865.09 | F17: 50 | G17: 4.82 | H17: 13.32 | L17: Nov | M17: 60.83 | N17: 5.5 | O17: 865.09 | P17: 5.5 | Q17: 13.32
A18: Dec | B18: 150 | C18: 39.19 | D18: 4.75 | E18: 1790.39 | F18: 50 | G18: 4.69 | H18: 25.94 | L18: Dec | M18: 33.34 | N18: 5.92 | O18: 1790.39 | P18: 5.82 | Q18: 25.94
L19: Annual | M19: =MAX(M7:M18) -> 2846.34 | N19: =AVERAGE(N7:N18) -> 5.9625 | O19: =MAX(O7:O18) -> 3152.87 | P19: =AVERAGE(P7:P18) -> 5.753333333 | Q19: =MAX(Q7:Q18) -> 438.08
K21: =+A6 -> 2022 | L21: mg/Nm3 | M21: 95%ile 10-min avg maximum | N21: Monthly CO 10-min avg mean | O21: 10-min avg maximum | P21: Monthly daily mean | Q21: Monthly daily maximum
K22: A2 | L22: Jan | M22: 20.07 | N22: 4.25 | O22: 367.68 | P22: 4.26 | Q22: 11.06
L23: Feb | M23: 17.76 | N23: 3.27 | O23: 415.53 | P23: 3.27 | Q23: 6.74
L24: Mar | M24: 7.94 | N24: 1.75 | O24: 642.89 | P24: 1.75 | Q24: 5.14
L25: Apr | M25: 39.02 | N25: 2.24 | O25: 127.6 | P25: 1.91 | Q25: 4.29
L26: May | M26: 21.54 | N26: 2.67 | O26: 295.69 | P26: 2.67 | Q26: 5.48
L27: Jun | M27: 34.79 | N27: 3.44 | O27: 146.92 | P27: 3.44 | Q27: 7.97
L28: Jul | M28: 23.37 | N28: 1.9 | O28: 189.55 | P28: 1.9 | Q28: 6.81
L29: Aug | M29: 21.99 | N29: 4.46 | O29: 1193.63 | P29: 4.46 | Q29: 13.11
L30: Sep | M30: 37.48 | N30: 4.98 | O30: 642 | P30: 4.98 | Q30: 10.98
L31: Oct | M31: 42.71 | N31: 5.99 | O31: 923.86 | P31: 6.04 | Q31: 12.14
L32: Nov | M32: 21.81 | N32: 3.99 | O32: 250.67 | P32: 4.01 | Q32: 8.86
L33: Dec | M33: 39.19 | N33: 3.78 | O33: 239.26 | P33: 3.78 | Q33: 7.84
L34: Annual | M34: =MAX(M22:M33) -> 42.71 | N34: =AVERAGE(N22:N33) -> 3.56 | O34: =MAX(O22:O33) -> 1193.63 | P34: =AVERAGE(P22:P33) -> 3.539166667 | Q34: =MAX(Q22:Q33) -> 13.11
K36: =+A6 -> 2022 | L36: mg/Nm3 | M36: 95%ile 10-min avg maximum | N36: Monthly CO 10-min avg mean | O36: 10-min avg maximum | P36: Monthly daily mean | Q36: Monthly daily maximum
K37: A3 | L37: Jan
L38: Feb
L39: Mar
L40: Apr
L41: May
L42: Jun
L43: Jul
L44: Aug
L45: Sep
L46: Oct
L47: Nov
A48: Comments : | L48: Dec
A49: Environment Agency explanatory note: The 10-minute average ELV is based on the “95th percentile”. In this case this means that 95% of the 10 minute averages in the relevant 24-hour period (i.e. 137) must be below 150 mg/Nm3, and 5% (i.e. 7) are allowed to be any value above 150 mg/Nm3. Whilst we expect operators to minimise CO emissions at all times, it is perfectly acceptable for the value of the maximum 10-minute average to be above 150 mg/Nm3, provided the 95th percentile ELV has been met for that period. | L49: Annual | M49: =AVERAGE(M37:M48) ->  | O49: =MAX(O37:O48) -> 0 | P49: =AVERAGE(P37:P48) ->  | Q49: =MAX(Q37:Q48) -> 0
K51: =+A6 -> 2022 | L51: mg/Nm3 | M51: 95%ile 10-min avg maximum | N51: Monthly CO 10-min avg mean | O51: 10-min avg maximum | P51: Monthly daily mean | Q51: Monthly daily maximum
K52: A4 | L52: Jan
L53: Feb
L54: Mar
L55: Apr
L56: May
L57: Jun
L58: Jul
L59: Aug
L60: Sep
L61: Oct
L62: Nov
L63: Dec
L64: Annual | M64: =AVERAGE(M52:M63) ->  | O64: =MAX(O52:O63) -> 0 | P64: =AVERAGE(P52:P63) ->  | Q64: =MAX(Q52:Q63) -> 0
K66: =+A6 -> 2022 | L66: mg/Nm3 | M66: 95%ile 10-min avg maximum | N66: Monthly CO 10-min avg mean | O66: 10-min avg maximum | P66: Monthly daily mean | Q66: Monthly daily maximum
K67: A5 | L67: Jan
L68: Feb
L69: Mar
L70: Apr
L71: May
L72: Jun
L73: Jul
L74: Aug
L75: Sep
L76: Oct
L77: Nov
L78: Dec
L79: Annual | M79: =AVERAGE(M67:M78) ->  | O79: =MAX(O67:O78) -> 0 | P79: =AVERAGE(P67:P78) ->  | Q79: =MAX(Q67:Q78) -> 0

Sheet NH3
A1: =+'Cover Page'!$B$29 -> Annual Performance Report 2022 | E1: =+'Cover Page'!$B$33 -> Lakeside EFW Ltd
A3: Monitoring of Ammnonia emissions | D3: Whole Installation | G3: See Notes in Cell Q3 | J3: =+A3 -> Monitoring of Ammnonia emissions | N3: Per Combustion Line | Q3: Notes:
Q4: User to add logic to complete Whole installation, Table A5:G18. From the data in Per Combustion Line, Table J6:O79, subject to No. of lines installed
A5: mg/Nm3 | B5: 1/2 Hourly Reference Periods | E5: Daily Reference Periods
A6: =+'Cover Page'!C39 -> 2022 | B6: 1/2 hourly NH3 ELV | C6: Monthly 1/2 hourly mean | D6: Highest 1/2 hourly maximum | E6: Daily NH3 ELV | F6: Monthly daily mean | G6: Highest daily maximum | J6: =+A6 -> 2022 | K6: mg/Nm3 | L6: Monthly 1/2 hourly mean | M6: Monthly 1/2 hourly maximum | N6: Monthly daily mean | O6: Monthly daily maximum
A7: Jan | B7: 0 | C7: 0.09 | D7: 2.86 | E7: 10 | F7: 0.09 | G7: 0.3 | J7: A1 | K7: Jan | L7: 0.1 | M7: 2.86 | N7: 0.1 | O7: 0.3
A8: Feb | B8: =+B7 -> 0 | C8: 0.1 | D8: 16.03 | E8: =+E7 -> 10 | F8: 0.11 | G8: 2.19 | K8: Feb | L8: 0.13 | M8: 16.03 | N8: 0.14 | O8: 2.19
A9: Mar | B9: =+B8 -> 0 | C9: 0.12 | D9: 0.78 | E9: =+E8 -> 10 | F9: 0.12 | G9: 0.23 | K9: Mar | L9: 0.16 | M9: 0.78 | N9: 0.16 | O9: 0.23 | Q9: Whole Installation table A5:G18:
A10: Apr | B10: 0 | C10: 0.17 | D10: 2.02 | E10: 10 | F10: 0.15 | G10: 0.28 | K10: Apr | L10: 0.2 | M10: 2.02 | N10: 0.18 | O10: 0.25 | Q10: Mean: for 1/2 hourly and daily periods calculate mean of values across all operational combustion lines for the month
A11: May | B11: 0 | C11: 0.14 | D11: 2.23 | E11: 10 | F11: 0.14 | G11: 0.35 | K11: May | L11: 0.17 | M11: 2.23 | N11: 0.17 | O11: 0.35
A12: Jun | B12: 0 | C12: 0.07 | D12: 0.79 | E12: 10 | F12: 0.08 | G12: 0.42 | K12: Jun | L12: 0.03 | M12: 0.79 | N12: 0.03 | O12: 0.23
A13: Jul | B13: 0 | C13: 0.06 | D13: 2.28 | E13: 10 | F13: 0.06 | G13: 0.25 | K13: Jul | L13: 0.02 | M13: 2.28 | N13: 0.02 | O13: 0.25 | Q13: Maximum: for 1/2 hourly and daily periods use the highest value across all operational combustion lines for the month
A14: Aug | B14: 0 | C14: 0.11 | D14: 13.26 | E14: 10 | F14: 0.11 | G14: 1.4 | K14: Aug | L14: 0.09 | M14: 13.26 | N14: 0.09 | O14: 1.4
A15: Sep | B15: 0 | C15: 0.09 | D15: 5.45 | E15: 10 | F15: 0.08 | G15: 0.25 | K15: Sep | L15: 0.05 | M15: 5.45 | N15: 0.03 | O15: 0.16
A16: Oct | B16: 0 | C16: 0.03 | D16: 2.98 | E16: 10 | F16: 0.03 | G16: 0.24 | K16: Oct | L16: -0.07 | M16: 1.09 | N16: -0.07 | O16: 0.07
A17: Nov | B17: 0 | C17: 0.08 | D17: 5.48 | E17: 10 | F17: 0.08 | G17: 0.74 | K17: Nov | L17: 0.02 | M17: 5.48 | N17: 0.02 | O17: 0.74
A18: Dec | B18: 0 | C18: 0.06 | D18: 5.17 | E18: 10 | F18: 0.06 | G18: 0.32 | K18: Dec | L18: -0.01 | M18: 5.17 | N18: -0.02 | O18: 0.32
K19: Annual | L19: =AVERAGE(L7:L18) -> 0.07416666667 | M19: =MAX(M7:M18) -> 16.03 | N19: =AVERAGE(N7:N18) -> 0.07083333333 | O19: =MAX(O7:O18) -> 2.19
J21: =+A6 -> 2022 | K21: mg/Nm3 | L21: Monthly 1/2 hourly mean | M21: Monthly 1/2 hourly maximum | N21: Monthly daily mean | O21: Monthly daily maximum
J22: A2 | K22: Jan | L22: 0.08 | M22: 0.37 | N22: 0.08 | O22: 0.14
K23: Feb | L23: 0.07 | M23: 0.5 | N23: 0.07 | O23: 0.18
K24: Mar | L24: 0.07 | M24: 0.65 | N24: 0.07 | O24: 0.15
K25: Apr | L25: 0.13 | M25: 1.78 | N25: 0.12 | O25: 0.28
K26: May | L26: 0.11 | M26: 1.22 | N26: 0.11 | O26: 0.22
K27: Jun | L27: 0.13 | M27: 0.76 | N27: 0.13 | O27: 0.42
K28: Jul | L28: 0.1 | M28: 0.63 | N28: 0.1 | O28: 0.22
K29: Aug | L29: 0.13 | M29: 1.62 | N29: 0.13 | O29: 0.36
K30: Sep | L30: 0.12 | M30: 1.17 | N30: 0.12 | O30: 0.25
K31: Oct | L31: 0.13 | M31: 2.98 | N31: 0.13 | O31: 0.24
K32: Nov | L32: 0.14 | M32: 1.01 | N32: 0.14 | O32: 0.38
K33: Dec | L33: 0.13 | M33: 4.27 | N33: 0.13 | O33: 0.22
K34: Annual | L34: =AVERAGE(L22:L33) -> 0.1116666667 | M34: =MAX(M22:M33) -> 4.27 | N34: =AVERAGE(N22:N33) -> 0.1108333333 | O34: =MAX(O22:O33) -> 0.42
J36: =+A6 -> 2022 | K36: mg/Nm3 | L36: Monthly 1/2 hourly mean | M36: Monthly 1/2 hourly maximum | N36: Monthly daily mean | O36: Monthly daily maximum
J37: A3 | K37: Jan
K38: Feb
K39: Mar
K40: Apr
K41: May
K42: Jun
K43: Jul
K44: Aug
K45: Sep
K46: Oct
K47: Nov
A48: Comments : | K48: Dec
A49: An indicated ELV value of zero in the table above means that no ammonia limit is set in the permit. | K49: Annual | L49: =AVERAGE(L37:L48) ->  | M49: =MAX(M37:M48) -> 0 | N49: =AVERAGE(N37:N48) ->  | O49: =MAX(O37:O48) -> 0
J51: =+A6 -> 2022 | K51: mg/Nm3 | L51: Monthly 1/2 hourly mean | M51: Monthly 1/2 hourly maximum | N51: Monthly daily mean | O51: Monthly daily maximum
J52: A4 | K52: Jan
K53: Feb
K54: Mar
K55: Apr
K56: May
K57: Jun
K58: Jul
K59: Aug
K60: Sep
K61: Oct
K62: Nov
K63: Dec
K64: Annual | L64: =AVERAGE(L52:L63) ->  | M64: =MAX(M52:M63) -> 0 | N64: =AVERAGE(N52:N63) ->  | O64: =MAX(O52:O63) -> 0
J66: =+A6 -> 2022 | K66: mg/Nm3 | L66: Monthly 1/2 hourly mean | M66: Monthly 1/2 hourly maximum | N66: Monthly daily mean | O66: Monthly daily maximum
J67: A5 | K67: Jan
K68: Feb
K69: Mar
K70: Apr
K71: May
K72: Jun
K73: Jul
K74: Aug
K75: Sep
K76: Oct
K77: Nov
K78: Dec
K79: Annual | L79: =AVERAGE(L67:L78) ->  | M79: =MAX(M67:M78) -> 0 | N79: =AVERAGE(N67:N78) ->  | O79: =MAX(O67:O78) -> 0
